fUSD/lending_fUSD_20250629
["ID","MTS","AMOUNT","RATE_DAILY","PERIOD"]
[368487922,1751190708163,-148479.19,0.00029041,3]
[368487923,1751190708174,-1110.23,0.00029041,3]
[368487924,1751190708183,-884.61,0.00029041,3]
[368487925,1751190708193,-393.05584627,0.00029041,3]
[368487926,1751190708205,-3927.92,0.00029041,3]
[368487927,1751190708214,-1262.58,0.00029041,3]
[368487928,1751190708224,-490.0,0.00029041,3]
[368487929,1751190708233,-490.0,0.00029041,3]
[368487930,1751190708243,-1550.57,0.00029041,3]
[368487931,1751190708252,-490.0,0.00029041,3]
[368487932,1751190708262,-4423.72,0.00029041,3]
[368487933,1751190708272,-799.02,0.00029041,3]
[368487934,1751190708282,-490.0,0.00029041,3]
[368487935,1751190708291,-2359.81,0.00029041,3]
[368487936,1751190708301,-1420.75,0.00029041,3]
[368487937,1751190708310,-490.0,0.00029041,3]
[368487938,1751190708320,-612.29,0.00029041,3]
[368487939,1751190708330,-490.0,0.00029041,3]
[368487940,1751190708339,-2220.09,0.00029041,3]
[368487941,1751190708350,-490.0,0.00029041,3]
[368487942,1751190708362,-490.0,0.00029041,3]
[368487943,1751190708372,-1116.8,0.00029041,3]
[368487944,1751190708382,-490.0,0.00029041,3]
[368487945,1751190708392,-850.38,0.00029041,3]
[368487946,1751190708402,-495.37,0.00029041,3]
[368487947,1751190708411,-1635.41,0.00029041,3]
[368487948,1751190708421,-1906.36,0.00029041,3]
[368487949,1751190708432,-2198.76,0.00029041,3]
[368487950,1751190708442,-1730.15,0.00029041,3]
[368487951,1751190708454,-490.0,0.00029041,3]
[368487952,1751190708464,-490.0,0.00029041,3]
[368487953,1751190708474,-1477.82,0.00029041,3]
[368487954,1751190708484,-3000.74,0.00029041,3]
[368487955,1751190708493,-924.29,0.00029041,3]
[368487956,1751190708503,-590.95,0.00029041,3]
[368487957,1751190708512,-1537.71,0.00029041,3]
[368487958,1751190708522,-818.08,0.00029041,3]
[368487959,1751190708532,-1894.35,0.00029041,3]
[368487960,1751190708542,-1565.54,0.00029041,3]
[368487961,1751190708552,-490.0,0.00029041,3]
[368487962,1751190708562,-707.33,0.00029041,3]
[368487963,1751190708572,-490.0,0.00029041,3]
[368487964,1751190708582,-854.62,0.00029041,3]
[368487965,1751190708591,-2120.63,0.00029041,3]
[368487966,1751190708600,-1990.15,0.00029041,3]
[368487967,1751190708609,-490.0,0.00029041,3]
[368487968,1751190708619,-490.0,0.00029041,3]
[368487969,1751190708628,-490.0,0.00029041,3]
[368487970,1751190708638,-501.24,0.00029041,3]
[368487971,1751190708647,-1303.39,0.00029041,3]
[368487972,1751190708657,-490.0,0.00029041,3]
[368487973,1751190708667,-490.0,0.00029041,3]
[368487974,1751190708676,-490.0,0.00029041,3]
[368487975,1751190708686,-490.0,0.00029041,3]
[368487976,1751190708695,-2057.83,0.00029041,3]
[368487977,1751190708706,-1078.53,0.00029041,3]
[368487978,1751190708717,-1066.81,0.00029041,3]
[368487979,1751190708728,-829.05,0.00029041,3]
[368487980,1751190708739,-2549.31,0.00029041,3]
[368487981,1751190708749,-1514.01,0.00029041,3]
[368487982,1751190708759,-490.0,0.00029041,3]
[368487983,1751190708768,-490.0,0.00029041,3]
[368487984,1751190708779,-709.69,0.00029041,3]
[368487985,1751190708789,-490.0,0.00029041,3]
[368487986,1751190708799,-1413.24,0.00029041,3]
[368487987,1751190708809,-1126.76,0.00029041,3]
[368487988,1751190708818,-499.7,0.00029041,3]
[368487989,1751190708828,-490.0,0.00029041,3]
[368487990,1751190708837,-7138.85,0.00029041,3]
[368487991,1751190708847,-490.0,0.00029041,3]
[368487992,1751190708857,-1903.95,0.00029041,3]
[368487993,1751190708867,-1687.9,0.00029041,3]
[368487994,1751190708877,-1199.32,0.00029041,3]
[368487995,1751190708887,-605.34,0.00029041,3]
[368487996,1751190708897,-490.0,0.00029041,3]
[368487997,1751190708907,-624.57,0.00029041,3]
[368487998,1751190708917,-1080.18,0.00029041,3]
[368487999,1751190708928,-490.0,0.00029041,3]
[368488000,1751190708938,-1902.03,0.00029041,3]
[368488001,1751190708949,-685.5,0.00029041,3]
[368488002,1751190708959,-490.0,0.00029041,3]
[368488003,1751190708970,-985.04,0.00029041,3]
[368488004,1751190708980,-809.87,0.00029041,3]
[368488005,1751190708990,-2277.33,0.00029041,3]
[368488006,1751190709001,-3579.22,0.00029041,3]
[368488007,1751190709011,-1369.16,0.00029041,3]
[368488008,1751190709022,-490.0,0.00029041,3]
[368488009,1751190709032,-1202.94,0.00029041,3]
[368488010,1751190709042,-1406.03,0.00029041,3]
[368488011,1751190709052,-490.0,0.00029041,3]
[368488012,1751190709063,-7389.77,0.00029041,3]
[368488013,1751190709074,-2322.41,0.00029041,3]
[368488014,1751190709084,-892.36,0.00029041,3]
[368488015,1751190709095,-936.2,0.00029041,3]
[368488016,1751190709105,-11425.24,0.00029041,3]
[368488017,1751190709116,-490.0,0.00029041,3]
[368488018,1751190709126,-2363.6,0.00029041,3]
[368488019,1751190709136,-1344.12,0.00029041,3]
[368488020,1751190709147,-490.0,0.00029041,3]
[368488021,1751190709157,-490.0,0.00029041,3]
[368488022,1751190709168,-490.0,0.00029041,3]
[368488023,1751190709178,-511.13981307,0.00029041,3]
[368488024,1751190709190,-1010.37,0.00029041,3]
[368488025,1751190709201,-3943.02,0.00029041,3]
[368488026,1751190709212,-719.55,0.00029041,3]
[368488027,1751190709222,-2127.37,0.00029041,3]
[368488028,1751190709232,-962.36,0.00029041,3]
[368488029,1751190709242,-490.0,0.00029041,3]
[368488030,1751190709252,-3378.38,0.00029041,3]
[368488031,1751190709263,-1167.04,0.00029041,3]
[368488032,1751190709274,-2325.84,0.00029041,3]
[368488033,1751190709284,-2715.66,0.00029041,3]
[368488034,1751190709294,-1319.73,0.00029041,3]
[368488035,1751190709304,-490.0,0.00029041,3]
[368488036,1751190709315,-509.95,0.00029041,3]
[368488037,1751190709324,-613.68,0.00029041,3]
[368488038,1751190709334,-490.0,0.00029041,3]
[368488039,1751190709345,-490.0,0.00029041,3]
[368488040,1751190709358,-1294.86,0.00029041,3]
[368488041,1751190709369,-1043.95,0.00029041,3]
[368488042,1751190709379,-490.0,0.00029041,3]
[368488043,1751190709389,-1355.41,0.00029041,3]
[368488044,1751190709402,-2207.5,0.00029041,3]
[368488045,1751190709413,-4741.41,0.00029041,3]
[368488046,1751190709423,-545.36,0.00029041,3]
[368488047,1751190709434,-490.0,0.00029041,3]
[368488048,1751190709446,-1588.45,0.00029041,3]
[368488049,1751190709456,-490.0,0.00029041,3]
[368488050,1751190709466,-490.0,0.00029041,3]
[368488051,1751190709477,-826.61,0.00029041,3]
[368488052,1751190709488,-3228.0,0.00029041,3]
[368488053,1751190709499,-490.0,0.00029041,3]
[368488054,1751190709510,-886.06,0.00029041,3]
[368488055,1751190709521,-9205.97,0.00029041,3]
[368488056,1751190709532,-1424.96,0.00029041,3]
[368488057,1751190709543,-1170.72,0.00029041,3]
[368488058,1751190709553,-490.0,0.00029041,3]
[368488059,1751190709563,-2306.21,0.00029041,3]
[368488060,1751190709574,-3412.3,0.00029041,3]
[368488061,1751190709585,-728.26,0.00029041,3]
[368488062,1751190709595,-1625.19,0.00029041,3]
[368488063,1751190709606,-490.0,0.00029041,3]
[368488064,1751190709616,-1125.2,0.00029041,3]
[368488065,1751190709626,-1386.0,0.00029041,3]
[368488066,1751190709638,-736.63,0.00029041,3]
[368488067,1751190709648,-1000.0,0.00029041,3]
[368488068,1751190709659,-490.0,0.00029041,3]
[368488069,1751190709670,-1530.28,0.00029041,3]
[368488070,1751190709681,-2006.57,0.00029041,3]
[368488071,1751190709691,-1073.8,0.00029041,3]
[368488072,1751190709703,-2126.77,0.00029041,3]
[368488073,1751190709714,-490.0,0.00029041,3]
[368488074,1751190709725,-2091.51,0.00029041,3]
[368488075,1751190709736,-1779.52,0.00029041,3]
[368488076,1751190709747,-490.0,0.00029041,3]
[368488077,1751190709756,-490.0,0.00029041,3]
[368488078,1751190709767,-490.0,0.00029041,3]
[368488079,1751190709778,-1303.39,0.00029041,3]
[368488080,1751190709790,-490.0,0.00029041,3]
[368488081,1751190709801,-1673.45,0.00029041,3]
[368488082,1751190709811,-776.8,0.00029041,3]
[368488083,1751190709821,-490.0,0.00029041,3]
[368488084,1751190709831,-2452.49,0.00029041,3]
[368488085,1751190709842,-4507.51,0.00029041,3]
[368488086,1751190709853,-2000.1,0.00029041,3]
[368488087,1751190709864,-3480.9,0.00029041,3]
[368488088,1751190709875,-490.0,0.00029041,3]
[368488089,1751190709885,-1935.08,0.00029041,3]
[368488090,1751190709896,-490.0,0.00029041,3]
[368488091,1751190709906,-1632.66,0.00029041,3]
[368488092,1751190709916,-1569.37,0.00029041,3]
[368488093,1751190709927,-2530.56,0.00029041,3]
[368488094,1751190709938,-199.27048995,0.00029041,3]
[368488095,1751190709949,-490.0,0.00029041,3]
[368488096,1751190709960,-1489.85,0.00029041,3]
[368488097,1751190709971,-490.0,0.00029041,3]
[368488098,1751190709982,-490.0,0.00029041,3]
[368488099,1751190709993,-1193.32,0.00029041,3]
[368488100,1751190710004,-490.0,0.00029041,3]
[368488101,1751190710015,-2419.87,0.00029041,3]
[368488102,1751190710025,-588.25,0.00029041,3]
[368488103,1751190710035,-1993.35,0.00029041,3]
[368488104,1751190710045,-2069.08,0.00029041,3]
[368488105,1751190710056,-3522.67,0.00029041,3]
[368488106,1751190710067,-1690.76,0.00029041,3]
[368488107,1751190710078,-2018.73,0.00029041,3]
[368488108,1751190710088,-2243.02,0.00029041,3]
[368488109,1751190710098,-490.0,0.00029041,3]
[368488110,1751190710108,-490.0,0.00029041,3]
[368488111,1751190710118,-1621.16,0.00029041,3]
[368488112,1751190710128,-490.0,0.00029041,3]
[368488113,1751190710138,-2803.72,0.00029041,3]
[368488114,1751190710149,-490.0,0.00029041,3]
[368488115,1751190710159,-490.0,0.00029041,3]
[368488116,1751190710169,-490.0,0.00029041,3]
[368488117,1751190710179,-490.0,0.00029041,3]
[368488118,1751190710190,-490.0,0.00029041,3]
[368488119,1751190710200,-1156.58,0.00029041,3]
[368488120,1751190710211,-697.23,0.00029041,3]
[368488121,1751190710221,-490.0,0.00029041,3]
[368488122,1751190710231,-2344.83,0.00029041,3]
[368488123,1751190710242,-490.0,0.00029041,3]
[368488124,1751190710251,-896.46,0.00029041,3]
[368488125,1751190710261,-1455.99,0.00029041,3]
[368488126,1751190710271,-2317.49,0.00029041,3]
[368488127,1751190710281,-1697.89,0.00029041,3]
[368488128,1751190710291,-490.0,0.00029041,3]
[368488129,1751190710301,-490.0,0.00029041,3]
[368488130,1751190710311,-490.0,0.00029041,3]
[368488131,1751190710321,-2847.6,0.00029041,3]
[368488132,1751190710331,-490.0,0.00029041,3]
[368488133,1751190710341,-1196.0,0.00029041,3]
[368488134,1751190710353,-490.0,0.00029041,3]
[368488135,1751190710363,-4069.2,0.00029041,3]
[368488136,1751190710373,-1620.63,0.00029041,3]
[368488137,1751190710384,-24643.72,0.00029041,3]
[368488138,1751190710395,-498.07,0.00029041,3]
[368488139,1751190710404,-499.82,0.00029041,3]
[368488140,1751190710414,-3762.98,0.00029041,3]
[368488141,1751190710423,-1069.72,0.00029041,3]
[368488142,1751190710435,-506.70588544,0.00029041,3]
[368488143,1751190710445,-725.1,0.00029041,3]
[368488144,1751190710457,-4782.64,0.00029041,3]
[368488145,1751190710467,-490.0,0.00029041,3]
[368488146,1751190710476,-1100.83,0.00029041,3]
[368488147,1751190710486,-1824.13,0.00029041,3]
[368488148,1751190710496,-2504.1,0.00029041,3]
[368488149,1751190710506,-490.0,0.00029041,3]
[368488150,1751190710516,-1607.63,0.00029041,3]
[368488151,1751190710527,-1132.25,0.00029041,3]
[368488152,1751190710537,-11678.75,0.00029041,3]
[368488153,1751190710547,-3607.16,0.00029041,3]
[368488154,1751190710556,-490.0,0.00029041,3]
[368488155,1751190710566,-674.39,0.00029041,3]
[368488156,1751190710576,-2388.21,0.00029041,3]
[368488157,1751190710586,-490.0,0.00029041,3]
[368488158,1751190710596,-632.01,0.00029041,3]
[368488159,1751190710606,-195.98122734,0.00029041,3]
[368488160,1751190710616,-3749.55,0.00029041,3]
[368488161,1751190710626,-2478.96,0.00029041,3]
[368488162,1751190710636,-554.30925686,0.00029041,3]
[368488163,1751190710646,-536.71,0.00029041,3]
[368488164,1751190710656,-1798.53,0.00029041,3]
[368488165,1751190710665,-1629.68,0.00029041,3]
[368488166,1751190710675,-3221.5,0.00029041,3]
[368488167,1751190710685,-490.0,0.00029041,3]
[368488168,1751190710694,-490.0,0.00029041,3]
[368488169,1751190710705,-1535.71,0.00029041,3]
[368488170,1751190710716,-548.24,0.00029041,3]
[368488171,1751190710726,-2263.99,0.00029041,3]
[368488172,1751190710736,-1677.32,0.00029041,3]
[368488173,1751190710746,-6718.76,0.00029041,3]
[368488174,1751190710755,-1322.58,0.00029041,3]
[368488175,1751190710766,-490.0,0.00029041,3]
[368488176,1751190710776,-18559.3,0.00029041,3]
[368488177,1751190710786,-857.93,0.00029041,3]
[368488178,1751190710796,-553.18,0.00029041,3]
[368488179,1751190710806,-490.0,0.00029041,3]
[368488180,1751190710816,-987.81,0.00029041,3]
[368488181,1751190710826,-490.0,0.00029041,3]
[368488182,1751190710836,-2586.37,0.00029041,3]
[368488183,1751190710846,-1263.2,0.00029041,3]
[368488184,1751190710856,-3862.63,0.00029041,3]
[368488185,1751190710866,-1943.16,0.00029041,3]
[368488186,1751190710876,-490.0,0.00029041,3]
[368488187,1751190710885,-698.11,0.00029041,3]
[368488188,1751190710895,-826.74,0.00029041,3]
[368488189,1751190710905,-490.0,0.00029041,3]
[368488190,1751190710915,-490.0,0.00029041,3]
[368488191,1751190710926,-490.0,0.00029041,3]
[368488192,1751190710936,-4122.27,0.00029041,3]
[368488193,1751190710947,-490.0,0.00029041,3]
[368488194,1751190710957,-490.0,0.00029041,3]
[368488195,1751190710967,-490.0,0.00029041,3]
[368488196,1751190710978,-4529.09,0.00029041,3]
[368488197,1751190711263,-1385.92,0.00029041,3]
[368488198,1751190711274,-490.0,0.00029041,3]
[368488199,1751190711284,-634.05263237,0.00029041,3]
[368488200,1751190711294,-490.0,0.00029041,3]
[368488201,1751190711304,-1552.69,0.00029041,3]
[368488202,1751190711314,-2723.89,0.00029041,3]
[368488203,1751190711325,-5320.1,0.00029041,3]
[368488204,1751190711335,-490.0,0.00029041,3]
[368488205,1751190711345,-620.43,0.00029041,3]
[368488206,1751190711357,-1307.14,0.00029041,3]
[368488207,1751190711367,-2896.25,0.00029041,3]
[368488208,1751190711377,-919.31,0.00029041,3]
[368488209,1751190711390,-2347.57,0.00029041,3]
[368488210,1751190711399,-1874.39,0.00029041,3]
[368488211,1751190711409,-2024.74,0.00029041,3]
[368488212,1751190711418,-490.0,0.00029041,3]
[368488213,1751190711429,-5682.59,0.00029041,3]
[368488214,1751190711439,-490.0,0.00029041,3]
[368488215,1751190711449,-490.0,0.00029041,3]
[368488216,1751190711459,-170.23116694,0.00029041,3]
[368488217,1751190711468,-490.0,0.00029041,3]
[368488218,1751190711477,-2104.31,0.00029041,3]
[368488219,1751190711487,-626.13,0.00029041,3]
[368488220,1751190711497,-1968.64,0.00029041,3]
[368488221,1751190711506,-2133.2,0.00029041,3]
[368488222,1751190711516,-490.0,0.00029041,3]
[368488223,1751190711526,-490.0,0.00029041,3]
[368488224,1751190711536,-1770.11,0.00029041,3]
[368488225,1751190711545,-1764.06,0.00029041,3]
[368488226,1751190711555,-490.0,0.00029041,3]
[368488227,1751190711565,-700.52,0.00029041,3]
[368488228,1751190711575,-490.0,0.00029041,3]
[368488229,1751190711584,-1730.13,0.00029041,3]
[368488230,1751190711593,-2165.68,0.00029041,3]
[368488231,1751190711602,-513.72,0.00029041,3]
[368488232,1751190711612,-883.4,0.00029041,3]
[368488233,1751190711621,-1926.75,0.00029041,3]
[368488234,1751190711631,-5921.12,0.00029041,3]
[368488235,1751190711639,-490.0,0.00029041,3]
[368488236,1751190711650,-490.0,0.00029041,3]
[368488237,1751190711659,-2043.04,0.00029041,3]
[368488238,1751190711668,-2141.99,0.00029041,3]
[368488239,1751190711677,-490.0,0.00029041,3]
[368488240,1751190711687,-855.58,0.00029041,3]
[368488241,1751190711696,-631.01,0.00029041,3]
[368488242,1751190711707,-696.89,0.00029041,3]
[368488243,1751190711716,-1625.9,0.00029041,3]
[368488244,1751190711726,-490.0,0.00029041,3]
[368488245,1751190711735,-3241.41,0.00029041,3]
[368488246,1751190711745,-3866.16,0.00029041,3]
[368488247,1751190711754,-4543.11,0.00029041,3]
[368488248,1751190711764,-2087.25,0.00029041,3]
[368488249,1751190711773,-569.82,0.00029041,3]
[368488250,1751190711782,-1891.34,0.00029041,3]
[368488251,1751190711792,-490.0,0.00029041,3]
[368488252,1751190711802,-1931.12,0.00029041,3]
[368488253,1751190711812,-490.0,0.00029041,3]
[368488254,1751190711822,-490.0,0.00029041,3]
[368488255,1751190711833,-490.0,0.00029041,2]
[368488256,1751190711843,-1948.57,0.00029041,3]
[368488257,1751190711853,-1323.16,0.00029041,3]
[368488258,1751190711864,-971.22,0.00029041,3]
[368488259,1751190711874,-6890.33,0.00029041,3]
[368488260,1751190711883,-1740.09,0.00029041,3]
[368488261,1751190711893,-961.28,0.00029041,3]
[368488262,1751190711902,-490.0,0.00029041,3]
[368488263,1751190711912,-1509.17,0.00029041,3]
[368488264,1751190711922,-2526.68,0.00029041,3]
[368488265,1751190711931,-490.0,0.00029041,3]
[368488266,1751190711941,-1923.32,0.00029041,3]
[368488267,1751190711952,-490.0,0.00029041,3]
[368488268,1751190711962,-1194.57,0.00029041,3]
[368488269,1751190711971,-502.33450096,0.00029068,5]
[368488270,1751190711981,-211.0,0.0002907,2]
[368488271,1751190711991,-214.0,0.0002907,2]
[368488272,1751190712000,-168.0,0.00029099,2]
[368488273,1751190712010,-1467.63,0.000291,2]
[368488274,1751190712019,-1417.51,0.000291,2]
[368488275,1751190712028,-1154.05,0.000291,2]
[368488276,1751190712038,-5640.55,0.000291,2]
[368488277,1751190712047,-3683.01,0.000291,2]
[368488278,1751190712057,-7366.01,0.000291,2]
[368488279,1751190712066,-7372.47,0.000291,2]
[368488280,1751190712076,-209.0,0.000291,2]
[368488281,1751190712085,-168.0,0.00029149,2]
[368488282,1751190712095,-2043.46130184,0.00029176,20]
[368488283,1751190712105,-1467.63,0.000292,2]
[368488284,1751190712114,-1417.51,0.000292,2]
[368488285,1751190712124,-1154.05,0.000292,2]
[368488286,1751190712133,-5640.55,0.000292,2]
[368488287,1751190712143,-3683.01,0.000292,2]
[368488288,1751190712152,-7366.01,0.000292,2]
[368488289,1751190712162,-7372.47,0.000292,2]
[368488290,1751190712173,-300.82,0.00029218,2]
[368488291,1751190712184,-371.85557959,0.00029245,15]
[368488292,1751190712194,-1814.04,0.00029288,14]
[368488293,1751190712205,-310.2473304,0.00029295,2]
[368488294,1751190712215,-10192.9515723,0.00029295,2]
[368488295,1751190712225,-64669.6050746,0.00029295,2]
[368488296,1751190712235,-7662.9784705,0.00029295,2]
[368488297,1751190712244,-3806.8521358,0.00029295,2]
[368488298,1751190712254,-15085.9937755,0.00029295,2]
[368488299,1751190712264,-1467.63,0.000293,2]
[368488300,1751190712273,-1417.51,0.000293,2]
[368488301,1751190712283,-1154.05,0.000293,2]
[368488302,1751190712293,-5640.55,0.000293,2]
[368488303,1751190712302,-3683.01,0.000293,2]
[368488304,1751190712312,-7366.01,0.000293,2]
[368488305,1751190712321,-7372.47,0.000293,2]
[368488306,1751190712331,-303.98420713,0.00029306,2]
[368488307,1751190712340,-490.0,0.00029314,3]
[368488308,1751190712351,-590.68,0.00029314,3]
[368488309,1751190712361,-802.0,0.00029315,3]
[368488310,1751190712372,-500.0,0.00029315,3]
[368488311,1751190712381,-500.0,0.00029315,3]
[368488312,1751190712391,-500.0,0.00029315,3]
[368488313,1751190712401,-500.0,0.00029315,3]
[368488314,1751190712411,-453.0,0.00029315,3]
[368488315,1751190712420,-600.46,0.00029315,3]
[368488316,1751190712431,-490.0,0.00029315,3]
[368488317,1751190712441,-490.0,0.00029315,3]
[368488318,1751190712451,-737.29,0.00029315,3]
[368488319,1751190712460,-737.29,0.00029315,3]
[368488320,1751190712469,-314.46727724,0.00029315,3]
[368488321,1751190712478,-490.0,0.00029315,3]
[368488322,1751190712488,-542.33,0.00029315,3]
[368488323,1751190712498,-847.37,0.00029315,3]
[368488324,1751190712507,-490.0,0.00029315,3]
[368488325,1751190712517,-490.0,0.00029315,3]
[368488326,1751190712526,-459.45622246,0.00029315,3]
[368488327,1751190712536,-490.0,0.00029315,3]
[368488328,1751190712545,-490.0,0.00029315,3]
[368488329,1751190712555,-490.0,0.00029315,3]
[368488330,1751190712564,-948.9,0.00029315,3]
[368488331,1751190712574,-667.1,0.00029315,3]
[368488332,1751190712583,-490.0,0.00029315,3]
[368488333,1751190712592,-513.09,0.00029315,3]
[368488334,1751190712602,-978.74,0.00029315,3]
[368488335,1751190712611,-642.29,0.00029315,3]
[368488336,1751190712620,-490.0,0.00029315,3]
[368488337,1751190712629,-490.0,0.00029315,3]
[368488338,1751190712638,-490.0,0.00029315,3]
[368488339,1751190712648,-1186.44,0.00029315,3]
[368488340,1751190712657,-490.0,0.00029315,3]
[368488341,1751190712667,-490.0,0.00029315,3]
[368488342,1751190712677,-2554.302964,0.00029315,3]
[368488343,1751190712686,-853.16,0.00029315,3]
[368488344,1751190712695,-490.0,0.00029315,3]
[368488345,1751190712705,-490.0,0.00029315,3]
[368488346,1751190712715,-2816.157543,0.00029315,3]
[368488347,1751190712724,-490.0,0.00029315,3]
[368488348,1751190712733,-490.0,0.00029315,3]
[368488349,1751190712743,-490.0,0.00029315,3]
[368488350,1751190712752,-158.454064,0.00029315,3]
[368488351,1751190712762,-2200.380726,0.00029315,3]
[368488352,1751190712771,-490.0,0.00029315,3]
[368488353,1751190712781,-151.959343,0.00029315,3]
[368488354,1751190712790,-392.680419,0.00029315,3]
[368488355,1751190712800,-490.0,0.00029315,3]
[368488356,1751190712810,-500.85,0.00029315,3]
[368488357,1751190712819,-887.72,0.00029315,3]
[368488358,1751190712828,-490.0,0.00029315,3]
[368488359,1751190712837,-656.47,0.00029315,3]
[368488360,1751190712847,-556.18,0.00029315,3]
[368488361,1751190712856,-571.97,0.00029315,3]
[368488362,1751190712866,-490.0,0.00029315,3]
[368488363,1751190712875,-858.42,0.00029315,3]
[368488364,1751190712884,-490.0,0.00029315,3]
[368488365,1751190712894,-648.74,0.00029315,3]
[368488366,1751190712903,-490.0,0.00029315,3]
[368488367,1751190712913,-490.0,0.00029315,3]
[368488368,1751190712922,-1167.71,0.00029315,3]
[368488369,1751190712932,-167.777922,0.00029315,3]
[368488370,1751190712941,-642.42,0.00029315,3]
[368488371,1751190712951,-490.0,0.00029315,3]
[368488372,1751190712960,-490.0,0.00029315,3]
[368488373,1751190712970,-523.68,0.00029315,3]
[368488374,1751190712979,-490.0,0.00029315,3]
[368488375,1751190712989,-490.0,0.00029315,3]
[368488376,1751190712999,-490.0,0.00029315,3]
[368488377,1751190713008,-625.75,0.00029315,3]
[368488378,1751190713018,-490.0,0.00029315,3]
[368488379,1751190713028,-490.0,0.00029315,3]
[368488380,1751190713038,-490.0,0.00029315,3]
[368488381,1751190713047,-490.0,0.00029315,3]
[368488382,1751190713057,-490.0,0.00029315,3]
[368488383,1751190713066,-490.0,0.00029315,3]
[368488384,1751190713075,-490.0,0.00029315,3]
[368488385,1751190713085,-490.0,0.00029315,3]
[368488386,1751190713095,-1529.36,0.00029315,3]
[368488387,1751190713104,-490.0,0.00029315,3]
[368488388,1751190713114,-490.0,0.00029315,3]
[368488389,1751190713124,-490.0,0.00029315,3]
[368488390,1751190713134,-725.47,0.00029315,3]
[368488391,1751190713143,-167.777922,0.00029315,3]
[368488392,1751190713153,-490.0,0.00029315,3]
[368488393,1751190713163,-490.0,0.00029315,3]
[368488394,1751190713172,-490.0,0.00029315,3]
[368488395,1751190713182,-490.0,0.00029315,3]
[368488396,1751190713191,-490.0,0.00029315,3]
[368488397,1751190713201,-1837.93,0.00029315,3]
[368488398,1751190713211,-490.0,0.00029315,3]
[368488399,1751190713220,-490.0,0.00029315,3]
[368488400,1751190713229,-677.59,0.00029315,3]
[368488401,1751190713239,-961.81,0.00029315,3]
[368488402,1751190713248,-490.0,0.00029315,3]
[368488403,1751190713257,-490.0,0.00029315,3]
[368488404,1751190713267,-811.6,0.00029315,3]
[368488405,1751190713276,-701.76,0.00029315,3]
[368488406,1751190713285,-490.0,0.00029315,3]
[368488407,1751190713294,-801.55,0.00029315,3]
[368488408,1751190713303,-490.0,0.00029315,3]
[368488409,1751190713312,-490.0,0.00029315,3]
[368488410,1751190713321,-493.56,0.00029315,3]
[368488411,1751190713331,-490.0,0.00029315,3]
[368488412,1751190713340,-490.0,0.00029315,3]
[368488413,1751190713349,-490.0,0.00029315,3]
[368488414,1751190713358,-490.0,0.00029315,3]
[368488415,1751190713372,-490.0,0.00029315,3]
[368488416,1751190713381,-490.0,0.00029315,3]
[368488417,1751190713391,-930.82,0.00029315,3]
[368488418,1751190713400,-740.41,0.00029315,3]
[368488419,1751190713410,-1134.82,0.00029315,3]
[368488420,1751190713419,-629.08,0.00029315,3]
[368488421,1751190713440,-507.56,0.00029315,3]